[Event "Allsvenskan Div II 5 2021/2022: SS Manhem III - Falkenbergs SK"]
[Site "Schackcentrum, Vegatan 20, Gothenburg, Sweden"]
[Date "2022.04.10"]
[Round "1.1"]
[White "Ekstrom, Jens"]
[Black "Asmar, Elie"]
[Result "1/2-1/2"]
[TimeControl "90 minutes for 40 moves + 30 minutes for the rest of the game + 30 seconds per move from move one."]
[WhiteFideId "1717820"]
[BlackFideId "5301432"]
[WhiteElo "1907"]
[BlackElo "1988"]

1. e4 {[%clk 01:30:58]} {[%emt 00:00:01]} d5 {[%clk 01:30:07]} {[%emt
00:00:54]} 2. Nc3 {[%clk 01:31:23]} {[%emt 00:00:05]} dxe4 {[%clk 01:30:27]}
{[%emt 00:00:10]} 3. Nxe4 {[%clk 01:31:47]} {[%emt 00:00:05]} Qd5 {[%clk
01:30:48]} {[%emt 00:00:09]} 4. Nc3 {[%clk 01:26:19]} {[%emt 00:05:58]} Qd8
{[%clk 01:31:12]} {[%emt 00:00:06]} 5. d4 {[%clk 01:25:21]} {[%emt 00:01:29]}
Nf6 {[%clk 01:31:36]} {[%emt 00:00:06]} 6. Bc4 {[%clk 01:24:45]} {[%emt
00:01:06]} a6 {[%clk 01:31:52]} {[%emt 00:00:13]} 7. Nf3 {[%clk 01:23:31]}
{[%emt 00:01:44]} b5 {[%clk 01:32:15]} {[%emt 00:00:07]} 8. Bb3 {[%clk
01:22:17]} {[%emt 00:01:45]} c5 {[%clk 01:32:39]} {[%emt 00:00:07]} 9. dxc5
{[%clk 01:14:16]} {[%emt 00:08:32]} Qxd1+ {[%clk 01:33:01]} {[%emt 00:00:07]}
10. Nxd1 {[%clk 01:08:59]} {[%emt 00:05:47]} e6 {[%clk 01:33:15]} {[%emt
00:00:15]} 11. Bg5 {[%clk 00:52:53]} {[%emt 00:16:36]} Bxc5 {[%clk 01:31:25]}
{[%emt 00:02:20]} 12. Ne3 {[%clk 00:52:10]} {[%emt 00:01:14]} Nbd7 {[%clk
01:29:55]} {[%emt 00:02:00]} 13. O-O-O {[%clk 00:47:52]} {[%emt 00:04:47]} Bb7
{[%clk 01:29:56]} {[%emt 00:00:29]} 14. Nd4 {[%clk 00:45:40]} {[%emt 00:02:43]}
h6 {[%clk 01:09:45]} {[%emt 00:20:41]} 15. Bh4 {[%emt 00:02:55]} g5 {[%clk
01:10:02]} 16. Bg3 {[%clk 00:43:47]} {[%emt 00:00:11]} Ne4 {[%clk 01:02:23]}
{[%emt 00:08:09]} 17. c4 {[%clk 00:36:49]} {[%emt 00:07:29]} b4 {[%clk
00:53:40]} {[%emt 00:09:12]} 18. Ba4 {[%clk 00:26:49]} {[%emt 00:10:30]} O-O-O
{[%clk 00:49:02]} {[%emt 00:05:09]} 19. Nc6 {[%clk 00:16:18]} {[%emt 00:11:01]}
Bxc6 {[%clk 00:49:03]} {[%emt 00:00:29]} 20. Bxc6 {[%clk 00:16:37]} {[%emt
00:00:10]} Nxg3 {[%clk 00:48:54]} {[%emt 00:00:39]} 21. Bxd7+ {[%clk 00:16:54]}
{[%emt 00:00:14]} Rxd7 {[%clk 00:49:07]} {[%emt 00:00:17]} 22. hxg3 {[%clk
00:17:10]} {[%emt 00:00:14]} h5 {[%clk 00:46:04]} {[%emt 00:03:32]} 23. Rxd7
{[%clk 00:15:33]} {[%emt 00:02:08]} Kxd7 {[%clk 00:46:32]} {[%emt 00:00:02]} 24.
Kd2 {[%clk 00:15:50]} {[%emt 00:00:13]} Ke7 {[%clk 00:45:28]} {[%emt 00:01:34]}
25. Ke2 {[%clk 00:11:38]} {[%emt 00:04:42]} f5 {[%clk 00:45:15]} {[%emt
00:00:41]} 26. g4 {[%clk 00:09:51]} {[%emt 00:02:20]} Bxe3 {[%clk 00:44:35]}
{[%emt 00:01:09]} 27. Kxe3 {[%clk 00:10:09]} {[%emt 00:00:13]} fxg4 {[%clk
00:44:42]} {[%emt 00:00:23]} 28. g3 {[%clk 00:10:08]} {[%emt 00:00:30]} Kf6
{[%clk 00:42:04]} {[%emt 00:03:07]} 29. Ke4 {[%clk 00:09:48]} {[%emt 00:00:51]}
e5 {[%clk 00:34:26]} {[%emt 00:08:09]} 30. c5 {[%clk 00:05:33]} {[%emt
00:04:45]} h4 {[%clk 00:34:23]} {[%emt 00:00:31]} 31. gxh4 {[%clk 00:03:40]}
{[%emt 00:02:24]} gxh4 {[%clk 00:33:41]} {[%emt 00:01:12]} 32. c6 {[%clk
00:03:56]} {[%emt 00:00:15]} Ke6 {[%clk 00:32:04]} {[%emt 00:02:07]} 33. c7
{[%clk 00:04:06]} {[%emt 00:00:20]} h3 {[%clk 00:32:10]} {[%emt 00:00:23]} 34.
Rc1 {[%clk 00:04:11]} {[%emt 00:00:25]} h2 {[%clk 00:32:09]} {[%emt 00:00:30]}
35. Rh1 {[%clk 00:04:29]} {[%emt 00:00:11]} Kd7 {[%clk 00:31:47]} {[%emt
00:00:53]} 36. Kxe5 {[%clk 00:04:51]} {[%emt 00:00:09]} Kxc7 {[%clk 00:32:04]}
{[%emt 00:00:14]} 37. Kf4 {[%clk 00:05:10]} {[%emt 00:00:11]} Rd8 {[%clk
00:23:34]} {[%emt 00:08:59]} 38. Rxh2 {[%clk 00:01:53]} {[%emt 00:03:47]} Rd2
{[%clk 00:23:35]} {[%emt 00:00:29]} 39. Rh6 {[%clk 00:01:48]} {[%emt 00:00:35]}
Rxf2+ {[%clk 00:23:00]} {[%emt 00:01:05]} 40. Kxg4 {[%clk 00:02:07]} {[%emt
00:00:11]} Kb7 {[%clk 00:21:58]} {[%emt 00:01:32]} 41. Rh7+ {[%clk 00:00:45]}
{[%emt 00:01:52]} Kb6 {[%clk 00:22:22]} {[%emt 00:00:07]} 42. Rh6+ {[%clk
00:00:57]} {[%emt 00:00:18]} Kb5 {[%clk 00:22:41]} {[%emt 00:00:11]} 43. Rh5+
{[%clk 00:01:01]} {[%emt 00:00:25]} Kb6 {[%clk 00:22:14]} {[%emt 00:00:57]} 44.
Rh6+ {[%clk 00:01:15]} {[%emt 00:00:16]} Kb5 {[%clk 00:22:35]} {[%emt
00:00:09]} 45. Rh5+ {[%clk 00:01:34]} {[%emt 00:00:11]} Kb6 {[%clk 00:22:54]}
{[%emt 00:00:11]} 46. Rg5 {[%clk 00:01:03]} 1/2-1/2

[Event "Allsvenskan Div II 5 2021/2022: SS Manhem III - Falkenbergs SK"]
[Site "Schackcentrum, Vegatan 20, Gothenburg, Sweden"]
[Date "2022.04.10"]
[Round "1.2"]
[White "Olabe Odriozola, Eduardo"]
[Black "Issa, Omar"]
[Result "1/2-1/2"]
[TimeControl "90 minutes for 40 moves + 30 minutes for the rest of the game + 30 seconds per move from move one."]
[WhiteFideId "2211980"]
[BlackFideId "1735861"]
[WhiteElo "1939"]
[BlackElo "1841"]

1. e4 {[%clk 01:30:55]} {[%emt 00:00:05]} e6 {[%clk 01:30:48]} {[%emt
00:00:13]} 2. d3 {[%clk 01:29:37]} {[%emt 00:01:48]} d5 {[%clk 01:29:59]}
{[%emt 00:01:18]} 3. Nd2 {[%clk 01:29:58]} {[%emt 00:00:09]} Bc5 {[%clk
01:29:50]} {[%emt 00:00:39]} 4. Ngf3 {[%clk 01:29:23]} {[%emt 00:01:05]} c6
{[%clk 01:29:20]} {[%emt 00:01:00]} 5. g3 {[%clk 01:28:13]} {[%emt 00:01:41]}
Nf6 {[%clk 01:27:04]} {[%emt 00:02:46]} 6. e5 {[%clk 01:21:33]} {[%emt
00:07:09]} Ng4 {[%clk 01:15:19]} {[%emt 00:12:15]} 7. d4 {[%clk 01:21:27]}
{[%emt 00:00:37]} Be7 {[%clk 01:15:05]} {[%emt 00:00:43]} 8. Bh3 {[%clk
01:16:01]} {[%emt 00:05:56]} f5 {[%clk 01:14:11]} {[%emt 00:01:24]} 9. exf6
{[%clk 01:15:44]} {[%emt 00:00:48]} Nxf6 {[%clk 01:14:30]} {[%emt 00:00:11]} 10.
O-O {[%clk 01:08:56]} {[%emt 00:07:18]} O-O {[%clk 01:12:17]} {[%emt 00:02:43]}
11. Qe2 {[%clk 01:08:04]} {[%emt 00:01:22]} e5 {[%clk 01:09:57]} {[%emt
00:02:50]} 12. Bxc8 {[%clk 01:07:43]} {[%emt 00:00:51]} Qxc8 {[%clk 01:10:13]}
{[%emt 00:00:14]} 13. Nxe5 {[%clk 01:03:16]} {[%emt 00:04:58]} Bd6 {[%clk
01:09:44]} {[%emt 00:00:58]} 14. Ndf3 {[%clk 01:03:09]} {[%emt 00:00:38]} Re8
{[%clk 01:07:46]} {[%emt 00:02:27]} 15. Bf4 {[%clk 01:01:58]} {[%emt 00:01:41]}
Nh5 {[%clk 01:03:57]} {[%emt 00:04:20]} 16. Kh1 {[%clk 00:35:58]} {[%emt
00:26:30]} Nd7 {[%clk 00:52:31]} {[%emt 00:11:56]} 17. Rg1 {[%clk 00:27:30]}
{[%emt 00:08:58]} Ndf6 {[%clk 00:51:08]} {[%emt 00:01:52]} 18. Rg2 {[%clk
00:14:58]} {[%emt 00:13:03]} h6 {[%clk 00:38:38]} {[%emt 00:12:59]} 19. Qd3
{[%clk 00:12:59]} {[%emt 00:02:29]} Ne4 {[%clk 00:32:02]} {[%emt 00:07:05]} 20.
Re1 {[%clk 00:11:15]} {[%emt 00:02:15]} Qh3 {[%clk 00:18:03]} {[%emt 00:14:29]}
21. Rxe4 {[%clk 00:06:42]} {[%emt 00:05:04]} dxe4 {[%clk 00:16:51]} {[%emt
00:01:42]} 22. Qxe4 {[%clk 00:07:08]} {[%emt 00:00:04]} Qe6 {[%clk 00:11:51]}
{[%emt 00:05:29]} 23. Qd3 {[%clk 00:05:57]} {[%emt 00:01:41]} g5 {[%clk
00:10:47]} {[%emt 00:01:34]} 24. Bd2 {[%clk 00:04:18]} {[%emt 00:02:09]} g4
{[%clk 00:09:36]} {[%emt 00:01:42]} 25. Nh4 {[%clk 00:04:31]} {[%emt 00:00:17]}
Bxe5 {[%clk 00:09:31]} {[%emt 00:00:34]} 26. dxe5 {[%clk 00:04:58]} {[%emt
00:00:03]} Rad8 {[%clk 00:08:58]} {[%emt 00:01:03]} 27. Qe3 {[%clk 00:04:54]}
{[%emt 00:00:34]} Qd5 {[%clk 00:06:53]} {[%emt 00:02:35]} 28. Bc3 {[%clk
00:03:48]} {[%emt 00:01:36]} Re6 {[%clk 00:06:04]} {[%emt 00:01:18]} 29. Nf5
{[%clk 00:02:41]} {[%emt 00:01:38]} Ng7 {[%clk 00:03:38]} {[%emt 00:02:57]} 30.
Qf4 {[%clk 00:02:04]} {[%emt 00:01:06]} Rf8 {[%clk 00:01:14]} {[%emt 00:02:54]}
31. Ne3 {[%clk 00:02:01]} {[%emt 00:00:33]} Rxf4 {[%clk 00:25:31]} {[%emt
00:06:13]} 32. Nxd5 {[%clk 00:32:29]} {[%emt 00:00:02]} Rc4 {[%clk 00:24:32]}
{[%emt 00:01:27]} 33. Nf6+ {[%clk 00:31:09]} {[%emt 00:01:52]} Kf7 {[%clk
00:24:07]} {[%emt 00:00:54]} 34. Rg1 {[%clk 00:29:33]} {[%emt 00:02:07]} h5
{[%clk 00:23:39]} {[%emt 00:00:57]} 35. Rd1 {[%clk 00:29:42]} {[%emt 00:00:21]}
Rxc3 {[%clk 00:23:13]} {[%emt 00:00:56]} 36. Rd7+ {[%clk 00:13:23]} {[%emt
00:16:49]} Kg6 {[%clk 00:22:43]} {[%emt 00:01:00]} 37. bxc3 {[%clk 00:12:39]}
{[%emt 00:01:14]} Rxe5 {[%clk 00:22:13]} {[%emt 00:01:00]} 38. Rd6 {[%clk
00:08:43]} {[%emt 00:04:26]} Re6 {[%clk 00:17:35]} {[%emt 00:05:08]} 39. Ne4
{[%clk 00:08:03]} {[%emt 00:01:10]} Rxd6 {[%clk 00:17:53]} {[%emt 00:00:12]} 40.
Nxd6 {[%clk 00:08:32]} b5 {[%clk 00:17:47]} {[%emt 00:00:36]} 41. Nc8 {[%clk
00:08:30]} {[%emt 00:00:33]} Nf5 {[%clk 00:15:42]} {[%emt 00:02:34]} 42. Nxa7
{[%clk 00:08:16]} {[%emt 00:00:43]} Ne7 {[%clk 00:15:59]} {[%emt 00:00:13]} 43.
Kg2 {[%clk 00:08:44]} {[%emt 00:00:03]} Kf5 {[%clk 00:16:13]} {[%emt 00:00:16]}
44. f3 {[%clk 00:09:12]} {[%emt 00:00:01]} Ke5 {[%clk 00:16:18]} {[%emt
00:00:26]} 45. fxg4 {[%clk 00:08:40]} {[%emt 00:01:02]} hxg4 {[%clk 00:16:35]}
{[%emt 00:00:13]} 46. h4 {[%clk 00:09:01]} {[%emt 00:00:09]} Ke4 {[%clk
00:16:06]} {[%emt 00:00:58]} 47. Kf2 {[%clk 00:09:14]} {[%emt 00:00:18]} Kd5
{[%clk 00:16:03]} {[%emt 00:00:33]} 48. Ke3 {[%clk 00:09:23]} {[%emt 00:00:20]}
Ke5 {[%clk 00:15:34]} {[%emt 00:00:59]} 49. Kd3 {[%clk 00:09:00]} {[%emt
00:00:54]} Kd5 {[%clk 00:09:40]} {[%emt 00:06:23]} 50. Ke3 {[%clk 00:06:24]}
{[%emt 00:03:05]} Ke5 {[%clk 00:09:57]} {[%emt 00:00:14]} 51. a3 {[%clk
00:06:40]} {[%emt 00:00:15]} Nf5+ {[%clk 00:09:58]} {[%emt 00:00:29]} 52. Kf2
{[%clk 00:05:57]} {[%emt 00:01:14]} Kd5 {[%clk 00:09:41]} {[%emt 00:00:46]} 53.
h5 {[%clk 00:05:28]} {[%emt 00:01:00]} Kc5 {[%clk 00:08:33]} {[%emt 00:01:37]}
54. h6 {[%clk 00:04:53]} {[%emt 00:01:06]} Nxh6 {[%clk 00:08:47]} {[%emt
00:00:16]} 55. Ke3 {[%clk 00:05:22]} Ng8 {[%clk 00:08:03]} {[%emt 00:01:14]} 56.
Nc8 {[%clk 00:05:22]} {[%emt 00:00:28]} Kc4 {[%clk 00:07:42]} {[%emt 00:00:52]}
57. Kf4 {[%clk 00:03:42]} {[%emt 00:02:10]} Nf6 {[%clk 00:07:37]} {[%emt
00:00:35]} 58. Kf5 {[%clk 00:04:04]} {[%emt 00:00:06]} Nh5 {[%clk 00:07:41]}
{[%emt 00:00:28]} 59. Kxg4 {[%clk 00:02:56]} {[%emt 00:01:38]} Nxg3 {[%clk
00:07:58]} {[%emt 00:00:13]} 60. Kxg3 {[%clk 00:03:25]} Kxc3 {[%clk 00:08:26]}
{[%emt 00:00:02]} 61. Na7 {[%clk 00:03:33]} {[%emt 00:00:21]} Kxc2 {[%clk
00:08:49]} {[%emt 00:00:08]} 62. Nxc6 {[%clk 00:03:50]} {[%emt 00:00:14]} Kb3
{[%clk 00:09:14]} {[%emt 00:00:04]} 63. Kf3 {[%clk 00:03:59]} {[%emt 00:00:20]}
1/2-1/2

[Event "Allsvenskan Div II 5 2021/2022: SS Manhem III - Falkenbergs SK"]
[Site "Schackcentrum, Vegatan 20, Gothenburg, Sweden"]
[Date "2022.04.10"]
[Round "1.3"]
[White "Magnusson, Pier"]
[Black "Recktenwald, Christian"]
[Result "0-1"]
[TimeControl "90 minutes for 40 moves + 30 minutes for the rest of the game + 30 seconds per move from move one."]
[WhiteFideId "1728830"]
[BlackFideId "1728709"]
[WhiteElo "1760"]
[BlackElo "1825"]

1. e4 {[%clk 01:30:56]} {[%emt 00:00:03]} c5 {[%clk 01:30:53]} {[%emt
00:00:07]} 2. c3 {[%clk 01:31:13]} {[%emt 00:00:13]} d5 {[%clk 01:29:30]}
{[%emt 00:01:52]} 3. exd5 {[%clk 01:31:36]} {[%emt 00:00:08]} Qxd5 {[%clk
01:29:48]} {[%emt 00:00:12]} 4. Nf3 {[%clk 01:31:58]} {[%emt 00:00:08]} Nc6
{[%clk 01:29:31]} {[%emt 00:00:46]} 5. Na3 {[%clk 01:31:35]} {[%emt 00:00:55]}
Be6 {[%clk 01:19:00]} {[%emt 00:11:00]} 6. Qa4 {[%clk 01:26:08]} {[%emt
00:05:57]} O-O-O {[%clk 01:16:45]} {[%emt 00:02:44]} 7. Be2 {[%clk 01:23:41]}
{[%emt 00:02:59]} Nf6 {[%clk 01:13:10]} {[%emt 00:04:05]} 8. O-O {[%clk
01:23:46]} {[%emt 00:00:25]} a6 {[%clk 01:08:56]} {[%emt 00:04:43]} 9. Nc2
{[%clk 01:17:33]} {[%emt 00:06:43]} Qe4 {[%clk 00:59:20]} {[%emt 00:10:05]} 10.
Qxe4 {[%clk 01:15:02]} {[%emt 00:03:02]} Nxe4 {[%clk 00:59:47]} {[%emt
00:00:03]} 11. d3 {[%clk 01:12:04]} {[%emt 00:03:29]} Nd6 {[%clk 00:59:31]}
{[%emt 00:00:45]} 12. d4 {[%clk 01:11:32]} {[%emt 00:01:03]} cxd4 {[%clk
00:59:24]} {[%emt 00:00:36]} 13. Ncxd4 {[%clk 01:10:56]} {[%emt 00:01:05]} Nxd4
{[%clk 00:58:53]} {[%emt 00:01:01]} 14. Nxd4 {[%clk 01:11:15]} {[%emt
00:00:12]} Bc4 {[%clk 00:58:15]} {[%emt 00:01:08]} 15. Bxc4 {[%clk 01:10:54]}
{[%emt 00:00:51]} Nxc4 {[%clk 00:58:42]} {[%emt 00:00:03]} 16. b3 {[%clk
01:10:18]} {[%emt 00:01:07]} Nd6 {[%clk 00:54:19]} {[%emt 00:04:52]} 17. Be3
{[%clk 01:01:12]} {[%emt 00:09:36]} e5 {[%clk 00:52:26]} {[%emt 00:02:22]} 18.
Nf3 {[%clk 00:57:36]} {[%emt 00:04:07]} e4 {[%clk 00:51:39]} {[%emt 00:01:16]}
19. Ng5 {[%clk 00:55:18]} {[%emt 00:02:49]} h6 {[%clk 00:46:56]} {[%emt
00:05:13]} 20. Nh3 {[%clk 00:55:36]} {[%emt 00:00:12]} Be7 {[%clk 00:43:14]}
{[%emt 00:04:12]} 21. f3 {[%clk 00:52:11]} {[%emt 00:03:55]} Rhe8 {[%clk
00:36:38]} {[%emt 00:07:06]} 22. fxe4 {[%clk 00:44:41]} {[%emt 00:08:01]} Bf6
{[%clk 00:35:39]} {[%emt 00:01:29]} 23. Bb6 {[%clk 00:37:18]} {[%emt 00:07:53]}
Rd7 {[%clk 00:35:00]} {[%emt 00:01:09]} 24. Nf2 {[%clk 00:34:28]} {[%emt
00:03:21]} Nxe4 {[%clk 00:32:54]} {[%emt 00:02:35]} 25. Rfe1 {[%clk 00:29:57]}
{[%emt 00:05:01]} Rde7 {[%clk 00:29:54]} {[%emt 00:03:29]} 26. Rad1 {[%clk
00:25:41]} {[%emt 00:04:47]} Nxf2 {[%clk 00:17:47]} {[%emt 00:12:36]} 27. Rxe7
{[%clk 00:25:50]} {[%emt 00:00:22]} Nh3+ {[%clk 00:16:43]} {[%emt 00:01:34]} 28.
gxh3 {[%clk 00:26:03]} {[%emt 00:00:17]} Bxe7 {[%clk 00:17:02]} {[%emt
00:00:10]} 29. Bd4 {[%clk 00:25:28]} {[%emt 00:01:06]} g6 {[%clk 00:16:23]}
{[%emt 00:01:09]} 30. Re1 {[%clk 00:25:27]} {[%emt 00:00:31]} Kd7 {[%clk
00:16:02]} {[%emt 00:00:51]} 31. Kg2 {[%clk 00:24:41]} {[%emt 00:01:16]} Bg5
{[%clk 00:12:56]} {[%emt 00:03:36]} 32. Rxe8 {[%clk 00:24:33]} {[%emt
00:00:39]} Kxe8 {[%clk 00:13:23]} {[%emt 00:00:03]} 33. Kf3 {[%clk 00:24:26]}
{[%emt 00:00:37]} Ke7 {[%clk 00:13:37]} {[%emt 00:00:16]} 34. a4 {[%clk
00:23:25]} {[%emt 00:01:31]} Bf6 {[%clk 00:12:26]} {[%emt 00:01:40]} 35. Bc5+
{[%clk 00:21:02]} {[%emt 00:02:54]} Ke6 {[%clk 00:11:55]} {[%emt 00:01:01]} 36.
c4 {[%clk 00:21:00]} {[%emt 00:00:33]} Be7 {[%clk 00:10:54]} {[%emt 00:01:30]}
37. Be3 {[%clk 00:20:45]} {[%emt 00:00:45]} h5 {[%clk 00:11:03]} {[%emt
00:00:21]} 38. Bd2 {[%clk 00:21:00]} {[%emt 00:00:14]} Bd6 {[%clk 00:10:55]}
{[%emt 00:00:38]} 39. Bf4 {[%clk 00:19:37]} {[%emt 00:01:53]} Bxf4 {[%clk
00:10:35]} {[%emt 00:00:51]} 40. Kxf4 {[%clk 00:20:04]} {[%emt 00:00:02]} a5
{[%clk 00:10:27]} {[%emt 00:00:39]} 41. Ke4 {[%clk 00:18:02]} {[%emt 00:02:32]}
b6 {[%clk 00:09:22]} {[%emt 00:01:35]} 42. h4 {[%clk 00:16:44]} {[%emt
00:01:45]} f5+ {[%clk 00:09:34]} {[%emt 00:00:21]} 43. Kf4 {[%clk 00:16:44]}
{[%emt 00:00:30]} Kd6 {[%clk 00:08:27]} {[%emt 00:01:37]} 44. Kg5 {[%clk
00:14:03]} {[%emt 00:03:11]} Kc5 {[%clk 00:07:34]} {[%emt 00:01:22]} 45. Kxg6
{[%clk 00:14:03]} {[%emt 00:00:31]} f4 {[%clk 00:07:53]} {[%emt 00:00:11]} 0-1

[Event "Allsvenskan Div II 5 2021/2022: SS Manhem III - Falkenbergs SK"]
[Site "Schackcentrum, Vegatan 20, Gothenburg, Sweden"]
[Date "2022.04.10"]
[Round "1.4"]
[White "Ahlqvist, Jonas"]
[Black "Karlsson, Roger"]
[Result "1-0"]
[TimeControl "90 minutes for 40 moves + 30 minutes for the rest of the game + 30 seconds per move from move one."]
[WhiteFideId "1721330"]
[BlackFideId "1732293"]
[WhiteElo "1794"]
[BlackElo "1757"]

1. e4 {[%clk 01:30:58]} {[%emt 00:00:01]} d6 {[%clk 01:30:36]} {[%emt
00:00:24]} 2. d4 {[%clk 01:31:06]} {[%emt 00:00:21]} Nf6 {[%clk 01:30:59]}
{[%emt 00:00:08]} 3. Nc3 {[%clk 01:31:17]} {[%emt 00:00:19]} e5 {[%clk
01:31:23]} {[%emt 00:00:06]} 4. d5 {[%clk 01:29:19]} {[%emt 00:02:28]} Be7
{[%clk 01:30:15]} {[%emt 00:01:38]} 5. Nf3 {[%clk 01:28:35]} {[%emt 00:01:14]}
O-O {[%clk 01:29:09]} {[%emt 00:01:36]} 6. Be2 {[%clk 01:27:07]} {[%emt
00:01:59]} Nbd7 {[%clk 01:27:57]} {[%emt 00:01:41]} 7. O-O {[%clk 01:26:34]}
{[%emt 00:01:03]} Nc5 {[%clk 01:25:54]} {[%emt 00:02:32]} 8. Nd2 {[%clk
01:26:30]} {[%emt 00:00:35]} Ne8 {[%clk 01:25:40]} {[%emt 00:00:44]} 9. b4
{[%clk 01:22:12]} {[%emt 00:04:48]} Nd7 {[%clk 01:26:01]} {[%emt 00:00:09]} 10.
a3 {[%clk 01:17:30]} {[%emt 00:05:12]} Bg5 {[%clk 01:22:59]} {[%emt 00:03:32]}
11. Nc4 {[%clk 01:12:44]} {[%emt 00:05:17]} h6 {[%clk 01:18:48]} {[%emt
00:04:41]} 12. Ne3 {[%clk 01:04:49]} {[%emt 00:08:25]} Ndf6 {[%clk 01:15:47]}
{[%emt 00:03:30]} 13. Ng4 {[%clk 00:59:21]} {[%emt 00:05:59]} Nxg4 {[%clk
01:11:44]} {[%emt 00:04:33]} 14. Bxg4 {[%clk 00:59:41]} {[%emt 00:00:10]} Bxc1
{[%clk 01:11:42]} {[%emt 00:00:32]} 15. Rxc1 {[%clk 00:59:59]} {[%emt
00:00:12]} Nf6 {[%clk 01:10:51]} {[%emt 00:01:22]} 16. Bf3 {[%clk 00:58:30]}
{[%emt 00:01:59]} Nh7 {[%clk 01:07:57]} {[%emt 00:03:24]} 17. Qd3 {[%clk
00:57:06]} {[%emt 00:01:54]} a6 {[%clk 01:05:45]} {[%emt 00:02:42]} 18. Nd1
{[%clk 00:55:04]} {[%emt 00:02:32]} f5 {[%clk 01:04:03]} {[%emt 00:02:12]} 19.
exf5 {[%clk 00:49:31]} {[%emt 00:06:03]} Bxf5 {[%clk 01:03:46]} {[%emt
00:00:47]} 20. Qb3 {[%clk 00:43:14]} {[%emt 00:06:47]} Ng5 {[%clk 00:59:37]}
{[%emt 00:04:39]} 21. Be2 {[%clk 00:41:17]} {[%emt 00:02:28]} Ne4 {[%clk
00:55:26]} {[%emt 00:04:41]} 22. Qe3 {[%clk 00:38:45]} {[%emt 00:03:02]} Nf6
{[%clk 00:53:45]} {[%emt 00:02:12]} 23. c4 {[%clk 00:38:52]} {[%emt 00:00:23]}
c6 {[%clk 00:53:38]} {[%emt 00:00:36]} 24. dxc6 {[%clk 00:36:39]} {[%emt
00:02:42]} bxc6 {[%clk 00:53:44]} {[%emt 00:00:24]} 25. c5 {[%clk 00:31:52]}
{[%emt 00:05:18]} Nd5 {[%clk 00:53:04]} {[%emt 00:01:10]} 26. Qb3 {[%clk
00:31:14]} {[%emt 00:01:08]} Kh8 {[%clk 00:53:04]} {[%emt 00:00:31]} 27. cxd6
{[%clk 00:30:31]} {[%emt 00:01:12]} Qxd6 {[%clk 00:53:19]} {[%emt 00:00:15]} 28.
Ne3 {[%clk 00:29:43]} {[%emt 00:01:19]} Nf4 {[%clk 00:52:32]} {[%emt 00:01:16]}
29. Bf3 {[%clk 00:29:23]} {[%emt 00:00:50]} Bd7 {[%clk 00:49:18]} {[%emt
00:03:43]} 30. Rfd1 {[%clk 00:28:48]} {[%emt 00:01:06]} Qe7 {[%clk 00:48:15]}
{[%emt 00:01:32]} 31. Rc5 {[%clk 00:24:56]} {[%emt 00:04:23]} Rf6 {[%clk
00:43:45]} {[%emt 00:05:00]} 32. Ng4 {[%clk 00:21:05]} {[%emt 00:04:21]} Bxg4
{[%clk 00:37:31]} {[%emt 00:06:44]} 33. Bxg4 {[%clk 00:21:28]} {[%emt
00:00:07]} Rg6 {[%clk 00:37:46]} {[%emt 00:00:14]} 34. Bf3 {[%clk 00:19:36]}
{[%emt 00:02:22]} e4 {[%clk 00:17:49]} {[%emt 00:20:27]} 35. Qe3 {[%clk
00:14:07]} {[%emt 00:06:00]} Nh3+ {[%clk 00:18:05]} {[%emt 00:00:14]} 36. Kf1
{[%clk 00:13:30]} {[%emt 00:01:07]} Ng5 {[%clk 00:18:28]} {[%emt 00:00:07]} 37.
Be2 {[%clk 00:11:31]} {[%emt 00:02:29]} Ra7 {[%clk 00:15:16]} {[%emt 00:03:43]}
38. Rdc1 {[%clk 00:10:46]} {[%emt 00:01:16]} a5 {[%clk 00:12:15]} {[%emt
00:03:31]} 39. bxa5 {[%clk 00:09:13]} {[%emt 00:02:03]} Rc7 {[%clk 00:08:04]}
{[%emt 00:04:41]} 40. a6 {[%clk 00:08:22]} {[%emt 00:01:20]} Re6 {[%clk
00:06:36]} {[%emt 00:01:58]} 41. Ra5 {[%clk 00:07:36]} {[%emt 00:01:17]} Ra7
{[%clk 00:06:28]} {[%emt 00:00:38]} 42. Qb6 {[%clk 00:06:08]} {[%emt 00:01:57]}
Nf7 {[%clk 00:04:09]} {[%emt 00:02:49]} 43. Rxc6 {[%clk 00:14:57]} {[%emt
00:06:42]} Rxc6 {[%clk 00:12:35]} {[%emt 00:09:08]} 44. Qxc6 {[%clk 00:30:05]}
{[%emt 00:01:21]} Rc7 {[%clk 00:26:56]} {[%emt 00:01:09]} 45. Qa8+ {[%clk
00:29:35]} {[%emt 00:01:00]} Kh7 {[%clk 00:27:15]} {[%emt 00:00:11]} 46. g3
{[%clk 00:29:18]} {[%emt 00:00:47]} Qe6 {[%clk 00:26:54]} {[%emt 00:00:51]} 47.
Qd5 {[%clk 00:27:35]} {[%emt 00:02:14]} Qh3+ {[%clk 00:26:29]} {[%emt
00:00:55]} 48. Ke1 {[%clk 00:27:31]} {[%emt 00:00:33]} Qg2 {[%clk 00:25:36]}
{[%emt 00:01:23]} 49. a7 {[%clk 00:26:18]} {[%emt 00:01:44]} Qg1+ {[%clk
00:24:22]} {[%emt 00:01:45]} 50. Bf1 {[%clk 00:25:38]} {[%emt 00:01:10]} Rc1+
{[%clk 00:24:07]} {[%emt 00:00:45]} 51. Kd2 {[%clk 00:25:44]} {[%emt 00:00:23]}
Rxf1 {[%clk 00:21:50]} {[%emt 00:02:47]} 52. Qf5+ {[%clk 00:25:43]} {[%emt
00:00:31]} 1-0